bitfinex/quotes_ETHUSD_20251221
["timestamp","ask_amount","ask_price","bid_price","bid_amount"]
[1766345567240,2.169,2992.2,2991.7,4.58306463]
[1766345567562,3.17312528,2992.4,2991.7,4.58306463]
[1766345567870,2.169,2992.4,2991.7,4.58306463]
[1766345569185,2.171,2992.4,2991.7,4.58306463]
[1766345570342,2.171,2992.4,2991.5,3.77972586]
[1766345570343,1.731,2992.2,2991.5,0.437]
[1766345570564,0.31990782,2992.3,2991.5,0.437]
[1766345570769,0.5322,2992.1,2991.5,0.437]
[1766345571084,3.66182703,2992.3,2990.8,0.47843866]
[1766345571242,7.00374624,2992.3,2991.0,3.34333521]
[1766345571446,0.5322,2991.8,2991.1,1.00415889]
[1766345571780,1.731,2991.6,2991.0,3.34333521]
[1766345572465,1.731,2991.6,2991.1,3.34322994]
[1766345573492,1.731,2991.6,2991.0,3.34332731]
[1766345573694,1.731,2991.6,2991.1,0.9367608]
[1766345574295,0.438,2991.9,2991.1,0.9367608]
[1766345574296,1.731,2991.8,2991.1,5.51982543]
[1766345575896,1.731,2991.8,2991.1,8.86296935]
[1766345576871,1.733,2991.8,2991.1,8.86296935]
[1766345579403,1.733,2991.8,2991.3,4.58306463]
[1766345579702,0.002,2991.8,2991.3,4.58306463]
[1766345579892,0.002,2991.8,2991.3,5.80368673]
[1766345580485,1.733,2991.8,2991.3,5.80368673]
[1766345580687,1.733,2991.8,2991.3,4.58306463]
[1766345580884,1.733,2991.8,2991.1,7.92620855]
[1766345581705,1.733,2991.8,2991.1,11.26946019]
[1766345582105,1.733,2991.8,2991.1,7.92620855]
[1766345582305,1.731,2991.7,2991.0,3.3443216]
[1766345582497,1.1988,2991.7,2991.0,3.3443216]
[1766345582686,1.731,2991.7,2991.0,3.3443216]
[1766345582882,1.731,2991.7,2991.0,0.001]
[1766345583198,3.56159799,2991.8,2991.0,0.001]
[1766345583390,1.731,2991.6,2991.0,0.001]
[1766345583592,1.731,2991.4,2991.0,0.001]
[1766345583775,1.731,2991.3,2991.0,0.001]
[1766345583976,0.39994779,2991.7,2990.4,0.437]
[1766345584175,1.731,2991.4,2990.6,4.58306463]
[1766345584599,1.731,2991.4,2991.0,0.001]
[1766345585710,0.438,2991.4,2991.0,0.001]
[1766345588002,2.1711,2991.5,2991.0,0.001]
[1766345588805,0.438,2991.5,2991.0,0.001]
[1766345589115,1.7331,2991.3,2991.0,0.001]
[1766345589306,0.47850915,2991.4,2991.0,0.001]
[1766345589516,2.21160915,2991.4,2991.0,0.001]
[1766345591383,1.7331,2991.3,2991.0,0.001]
[1766345592896,0.47850915,2991.4,2991.0,0.001]
[1766345593100,2.15924146,2991.3,2991.0,0.001]
[1766345593287,2.15924146,2991.3,2990.2,4.34958786]
[1766345593288,1.1902,2991.2,2990.2,4.34958786]
[1766345593486,0.42614146,2991.3,2990.3,3.34414285]
[1766345593487,1.7331,2990.9,2990.3,3.34414285]
[1766345594812,0.438,2991.1,2990.3,3.34414285]
[1766345594995,1.7331,2991.0,2990.3,3.34414285]
[1766345595196,0.438,2991.1,2990.3,3.34414285]
[1766345595714,1.7331,2991.0,2990.3,3.34414285]
[1766345595908,0.438,2991.1,2990.3,3.34414285]
[1766345596086,0.5429,2990.9,2990.3,3.34414285]
[1766345596286,1.7331,2990.9,2990.3,3.34414285]
[1766345596512,1.7331,2990.8,2990.2,3.34523759]
[1766345596708,0.21711,2990.9,2990.2,3.34523759]
[1766345596902,1.7331,2990.7,2990.2,3.34523759]
[1766345598116,1.7331,2990.7,2990.2,0.001]
[1766345599220,1.7331,2990.8,2990.2,0.001]
[1766345599521,0.438,2991.1,2990.3,0.001]
[1766345599749,1.1902,2990.8,2990.3,0.001]
[1766345600023,1.7331,2990.6,2990.3,0.001]
[1766345601489,0.61131,2990.7,2990.2,0.001]
[1766345601689,0.61131,2990.7,2990.1,0.001]
[1766345601889,1.7331,2990.6,2990.1,0.001]
[1766345602110,1.1902,2990.6,2990.1,0.001]
[1766345602310,1.7331,2990.5,2990.1,0.001]
[1766345604291,0.5429,2990.5,2990.1,0.001]
[1766345604520,1.7331,2990.5,2990.1,0.001]
[1766345606217,0.4869,2990.5,2990.1,0.001]
[1766345606390,1.677,2990.5,2990.1,0.001]
[1766345607219,0.61131,2990.7,2990.1,0.001]
[1766345607426,0.4869,2990.4,2990.1,0.001]
[1766345607721,1.677,2990.4,2990.1,0.001]
[1766345609712,1.1901,2990.4,2990.1,0.001]
[1766345609923,0.4869,2990.3,2990.0,0.001]
[1766345610230,1.677,2990.1,2989.9,0.001]
[1766345610892,1.8447,2990.1,2989.9,0.001]
[1766345613811,0.1677,2990.1,2989.8,0.001]
[1766345614010,1.677,2990.0,2989.4,0.437]
[1766345617116,1.677,2990.0,2989.4,0.438]
[1766345617311,3.34429767,2990.2,2989.4,0.438]
[1766345617822,1.1803,2990.1,2989.4,0.438]
[1766345618035,0.4645,2989.8,2989.4,0.438]
[1766345618243,1.6448,2989.8,2989.4,0.438]
[1766345619417,1.6448,2989.8,2989.4,3.78314735]
[1766345620032,1.6448,2989.8,2989.4,0.438]
[1766345621148,1.6448,2989.8,2989.4,3.78315045]
[1766345621553,1.6448,2989.8,2989.4,0.438]
[1766345622153,1.6448,2990.0,2989.4,0.438]
[1766345623050,0.59674057,2990.1,2989.4,0.438]
[1766345623249,0.39410626,2990.0,2989.4,0.438]
[1766345623618,0.4645,2989.8,2989.4,0.438]
[1766345623816,1.6448,2989.8,2989.4,0.438]
[1766345625234,0.002,2989.9,2989.4,3.78312398]
[1766345625953,1.6448,2989.8,2989.4,0.438]
[1766345626644,0.002,2989.9,2989.4,0.438]
[1766345627046,1.6448,2989.8,2989.4,0.438]
[1766345627354,0.002,2989.9,2989.4,0.438]
[1766345628167,1.6448,2989.7,2989.4,0.438]
[1766345629215,0.002,2989.9,2989.4,0.001]
[1766345629456,0.33465558,2989.8,2989.4,0.001]
[1766345629636,0.002,2990.5,2989.5,4.58461882]
[1766345629838,0.002,2990.5,2989.8,4.58461882]
[1766345629839,0.438,2990.4,2989.8,4.58461882]
[1766345630064,2.0828,2990.4,2989.8,4.58461882]
[1766345630355,0.438,2990.4,2989.5,0.437]
[1766345630660,1.6448,2990.1,2989.5,0.437]
[1766345630972,0.438,2990.4,2989.5,1.60830825]
[1766345631165,1.6448,2990.3,2989.5,1.60830825]
[1766345631668,1.6448,2990.3,2989.5,4.95325641]
[1766345632766,0.002,2989.9,2989.5,4.95325641]
[1766345632929,1.6448,2990.3,2989.5,4.95325641]
[1766345633459,1.6448,2990.3,2989.6,0.95388752]
[1766345633763,1.6448,2990.3,2989.6,4.29879218]
[1766345637164,0.438,2990.4,2989.6,4.29879218]
[1766345637858,0.438,2990.4,2989.7,4.58461882]
[1766345638362,1.6468,2990.5,2989.7,4.58461882]
[1766345638559,1.6468,2990.5,2989.7,5.96829444]
[1766345638966,0.002,2990.5,2990.0,4.58461882]
[1766345639138,1.6448,2990.7,2990.0,4.58461882]
[1766345639339,1.6448,2990.7,2990.0,7.9290533]
[1766345639655,1.6448,2990.7,2990.0,9.10012529]
[1766345640044,1.6448,2990.7,2990.1,0.03344369]
[1766345640241,1.6448,2990.7,2990.0,9.10012529]
[1766345641256,1.6448,2990.7,2990.1,0.03344369]
[1766345641446,1.6448,2990.7,2990.0,9.10012529]
[1766345641649,1.6448,2990.7,2990.1,1.28817091]
[1766345645688,1.1289,2990.7,2989.9,0.437]
[1766345645882,1.5618,2990.5,2989.9,0.437]
[1766345648295,1.5618,2990.5,2989.9,3.78157702]
[1766345648467,1.5618,2990.5,2989.9,3.81502295]
[1766345648667,1.5618,2990.5,2989.9,3.78157702]
[1766345649681,1.5618,2990.5,2989.9,0.437]
[1766345650298,1.5618,2990.4,2989.8,3.34469178]
[1766345650590,1.5618,2990.3,2989.8,3.34469178]
[1766345650793,1.5618,2990.3,2989.7,3.3448172]
[1766345651895,0.438,2990.6,2989.7,3.3448172]
[1766345652399,1.5618,2990.5,2989.7,3.3448172]
[1766345652568,0.4329,2990.4,2989.7,4.51595471]
[1766345652767,1.5618,2990.3,2989.7,4.51595471]
[1766345653366,1.9998,2990.3,2989.7,4.51595471]
[1766345655790,1.5618,2990.2,2989.7,4.51595471]
[1766345655994,1.5618,2990.2,2989.8,4.58459802]
[1766345656376,0.44,2990.3,2989.8,4.58459802]
[1766345656577,1.5618,2990.2,2989.8,4.58459802]
[1766345658007,0.44,2990.3,2989.7,1.17113751]
[1766345658206,0.44,2990.3,2989.5,0.001]
[1766345658409,0.4329,2989.9,2989.5,0.001]
[1766345658709,1.5618,2989.9,2989.5,0.001]
[1766345659276,1.5618,2989.9,2989.5,3.34602854]
[1766345660309,1.5618,2989.9,2989.5,0.001]
[1766345661382,1.9998,2989.9,2989.5,0.001]
[1766345663714,1.9998,2989.9,2989.4,4.58559802]
[1766345663715,0.63798,2989.9,2989.1,0.001]
[1766345663915,0.63798,2989.9,2988.9,0.001]
[1766345663916,1.1289,2989.5,2988.9,0.001]
[1766345664085,1.5618,2989.9,2989.3,4.58459802]
[1766345664623,3.34439935,2990.1,2983.9,7.81565718]
[1766345664624,1.63761236,2988.2,2983.9,7.81565718]
[1766345664926,1.63761236,2988.2,2980.1,0.0348222]
[1766345664927,0.05,2982.7,2981.7,0.4616]
[1766345665087,3.524,2983.2,2982.5,1.5314]
[1766345665088,2.3832,2983.0,2982.5,1.5314]
[1766345665295,3.3511498,2984.1,2983.2,0.0201322]
[1766345665296,6.70241286,2984.0,2983.2,0.0201322]
[1766345665624,2.37826886,2983.5,2983.3,2.39980104]
[1766345665914,0.71348097,2983.4,2983.1,0.0201322]
[1766345666214,3.00810545,2983.7,2982.9,0.01066285]
[1766345666215,0.71341853,2983.3,2982.9,0.01066285]
[1766345666384,4.21134763,2983.5,2983.0,0.0201322]
[1766345666581,2.95802264,2983.1,2983.0,0.0201322]
[1766345666831,2.95802264,2983.2,2982.6,0.0201322]
[1766345667027,1.36041744,2982.8,2982.6,0.4571322]
[1766345667259,4.21134763,2983.6,2981.4,0.0201322]
[1766345667416,7.15832846,2982.8,2982.3,1.7635322]
[1766345667612,7.15832846,2982.8,2982.0,0.0201322]
[1766345667613,1.94036513,2982.5,2982.4,3.0154]
[1766345667843,4.21134763,2982.8,2981.6,0.0201322]
[1766345667844,4.21134763,2982.8,2982.0,1.272]
[1766345668016,0.3327,2982.6,2981.6,1.272]
[1766345668215,0.3327,2982.6,2981.5,2.1804]
[1766345668216,4.21134763,2981.9,2981.2,1.272]
[1766345668444,0.42113476,2982.7,2981.7,1.7635322]
[1766345668631,6.0162109,2983.7,2982.9,3.0355322]
[1766345668814,6.0162109,2983.7,2982.6,0.0201322]
[1766345668815,6.3985109,2983.7,2982.6,0.0201322]
[1766345669015,3.3516596,2983.6,2982.6,0.0201322]
[1766345669212,0.37727944,2983.4,2982.5,1.7434]
[1766345669412,6.43734566,2983.5,2982.8,0.0201322]
[1766345669844,6.43734566,2983.5,2982.8,1.2921322]
[1766345670045,6.43734566,2983.5,2982.8,1.272]
[1766345670246,6.0162109,2983.3,2982.8,1.272]
[1766345670433,6.0162109,2983.3,2982.8,3.0154]
[1766345670634,0.42113476,2983.5,2982.8,3.0154]
[1766345670635,0.57233209,2983.9,2983.1,1.7434]
[1766345670812,0.57233209,2983.9,2983.2,3.0154]
[1766345671012,0.57233209,2983.9,2983.1,0.01340865]
[1766345671239,0.57233209,2983.9,2982.9,0.01340865]
[1766345671629,0.57233209,2983.9,2983.0,0.01340865]
[1766345672017,0.57233209,2983.9,2982.7,0.01340865]
[1766345672349,0.57233209,2983.9,2982.9,0.01340865]
[1766345672726,0.57233209,2983.9,2983.0,0.01340865]
[1766345672930,0.57233209,2983.9,2983.1,1.272]
[1766345673124,0.57233209,2983.9,2983.2,1.28540865]
[1766345673329,0.13433209,2983.9,2983.2,1.28540865]
[1766345674613,0.13433209,2983.9,2983.1,0.01340865]
[1766345674817,0.52677713,2983.9,2983.1,0.01340865]
[1766345675264,0.52677713,2983.9,2983.3,0.01340865]
[1766345675428,1.946,2984.8,2984.1,0.01340865]
[1766345675628,8.25374328,2984.6,2984.1,0.01340865]
[1766345675825,0.439,2985.0,2984.4,0.01340865]
[1766345676017,0.6775,2985.0,2984.4,0.01340865]
[1766345676429,4.75128705,2985.0,2984.4,0.01340865]
[1766345676627,2.90984971,2984.6,2984.4,1.66810865]
[1766345676949,4.31228705,2985.0,2984.5,0.01340865]
[1766345677754,2.32761867,2984.6,2984.5,0.01340865]
[1766345678067,0.2385,2985.0,2984.5,0.01340865]
[1766345678352,0.2385,2985.0,2984.4,0.01340865]
[1766345678542,0.69843336,2984.9,2984.4,0.01340865]
[1766345678856,0.69843336,2984.8,2984.4,0.01340865]
[1766345679041,6.01978705,2985.5,2984.6,1.66810865]
[1766345679242,0.439,2985.4,2984.6,1.66810865]
[1766345679455,0.439,2985.4,2984.7,1.6547]
[1766345680155,0.439,2985.4,2984.7,1.48011034]
[1766345680772,1.0124444,2985.4,2984.6,0.01340865]
[1766345680928,0.439,2985.4,2984.6,0.01340865]
[1766345681140,3.34929989,2985.7,2984.6,0.01340865]
[1766345681361,6.01978705,2985.8,2985.0,0.01340865]
[1766345681765,1.74860461,2985.1,2985.0,0.01340865]
[1766345681966,1.946,2985.8,2985.0,0.01340865]
[1766345682133,0.439,2985.8,2985.0,2.09310865]
[1766345682762,1.946,2986.0,2985.2,1.6547]
[1766345682973,1.946,2986.0,2985.1,0.01340865]
[1766345682974,0.439,2986.2,2985.4,1.66810865]
[1766345683140,1.946,2986.3,2985.5,1.6547]
[1766345683541,2.385,2986.3,2985.5,1.6547]
[1766345683841,2.77927,2986.3,2985.5,1.6547]
[1766345684040,6.12791486,2986.3,2985.5,1.6547]
[1766345684867,2.77927,2986.3,2985.4,1.03193078]
[1766345685466,0.001,2985.8,2985.4,1.03193078]
[1766345686070,0.001,2985.8,2985.3,0.01340865]
[1766345686365,2.77927,2986.3,2985.3,0.45140865]
[1766345686572,0.90538578,2986.2,2985.3,0.45140865]
[1766345686745,0.90538578,2986.2,2985.4,1.6547]
[1766345688276,0.90538578,2986.2,2985.3,1.07500865]
[1766345689264,0.90538578,2986.2,2985.4,0.6264]
[1766345690271,0.90538578,2986.2,2985.4,2.2811]
[1766345691073,0.90538578,2986.2,2725.1,0.025]
[1766345691074,1.5577,2985.8,2983.9,0.21340865]
[1766345691239,3.5037,2985.7,2985.0,3.3500798]
[1766345691641,3.5037,2985.7,2985.0,1.6547]
[1766345693870,3.5037,2985.7,2985.0,5.01817791]
[1766345694778,3.5037,2985.7,2985.0,1.66810865]
[1766345695343,3.5037,2985.7,2985.0,5.01817482]
[1766345695675,1.946,2985.7,2985.0,5.01817482]
[1766345696275,3.5037,2985.6,2984.5,0.01340865]
[1766345696483,5.439,2985.5,2984.7,0.01340865]
[1766345696679,5.439,2985.5,2984.7,3.36382805]
[1766345696847,7.385,2985.5,2984.7,3.36382805]
[1766345697173,8.9427,2985.5,2984.7,3.36382805]
[1766345697379,9.876397,2985.5,2984.7,3.36382805]
[1766345698354,9.876397,2985.5,2984.7,3.84692805]
[1766345698754,9.876397,2985.5,2984.7,0.49650865]
[1766345698976,3.5037,2985.4,2984.7,0.49650865]
[1766345700350,3.5037,2985.4,2984.7,3.8469264]
[1766345700575,0.01917702,2985.3,2984.7,4.0253264]
[1766345702172,0.01917702,2985.3,2984.7,0.67490865]
[1766345702478,5.0,2985.1,2984.7,4.02532628]
[1766345702682,0.01917702,2985.3,2984.7,4.02532628]
[1766345704481,0.01917702,2985.3,2984.8,0.6562]
[1766345704793,0.01917702,2985.3,2984.8,0.7642]
[1766345706348,0.01917702,2985.3,2984.9,3.36360458]
[1766345706548,0.01917702,2985.3,2984.9,0.74580865]
[1766345707382,4.13300001,2985.1,2984.9,0.74580865]
[1766345707581,0.01917702,2985.3,2984.9,0.74580865]
[1766345710254,0.439,2985.5,2984.9,3.59336789]
[1766345710455,0.439,2985.5,2985.0,1.1124]
[1766345710783,4.4127,2985.8,2985.0,1.1124]
[1766345710984,0.88027,2985.7,2985.0,1.1124]
[1766345711179,0.439,2985.6,2985.0,1.1333]
[1766345711483,0.439,2985.6,2985.1,0.9249]
[1766345711687,0.439,2985.8,2985.3,0.9249]
[1766345711982,0.439,2985.7,2985.3,0.9249]
[1766345712783,3.34865852,2986.3,2985.4,0.7525]
[1766345712784,2.0824,2986.3,2985.4,0.7525]
[1766345712982,0.77496585,2986.2,2985.4,0.7525]
[1766345713377,5.18766585,2986.2,2985.4,0.7525]
[1766345713783,4.4127,2986.1,2985.4,0.7525]
[1766345714395,0.14874696,2986.8,2985.4,0.7525]
[1766345714578,4.696e-05,2986.8,2986.3,0.3159]
[1766345714766,0.001,2987.0,2986.2,0.01340865]
[1766345714767,4.696e-05,2987.0,2986.5,0.3159]
[1766345715191,4.696e-05,2987.0,2986.6,0.01340865]
[1766345715563,4.696e-05,2987.0,2986.6,0.35690865]
[1766345716691,4.696e-05,2987.0,2985.9,3.71264038]
[1766345716692,4.4127,2986.9,2985.9,3.71264038]
[1766345716878,4.4127,2986.7,2985.9,3.71256469]
[1766345717086,4.4127,2986.7,2985.9,4.15056469]
[1766345717390,4.4127,2986.7,2986.0,3.34896019]
[1766345717579,4.4127,2986.7,2986.0,0.3834]
[1766345718100,4.696e-05,2987.0,2985.7,0.3834]
[1766345718261,4.696e-05,2987.0,2985.4,0.01340865]
[1766345718262,4.4127,2986.8,2985.5,3.34952109]
[1766345718459,4.4127,2986.6,2985.6,0.41640865]
[1766345718662,4.4127,2986.6,2985.7,0.403]
[1766345718886,4.4127,2986.5,2985.7,0.403]
[1766345719093,4.4127,2986.5,2985.4,0.01340865]
[1766345719291,4.4127,2986.5,2985.4,3.36303774]
[1766345719504,4.4127,2986.2,2985.4,0.01340865]
[1766345720104,4.4127,2986.2,2985.4,0.43560865]
[1766345720277,4.4127,2986.2,2985.4,3.78522203]
[1766345720901,4.4127,2986.2,2985.4,3.78523435]
[1766345723281,4.4127,2986.2,2985.4,3.84133435]
[1766345723282,2.3303,2986.2,2985.4,3.84133435]
[1766345723491,2.3303,2986.2,2985.4,4.60414028]
[1766345724104,4.4127,2986.1,2985.4,0.49170865]
[1766345725204,4.4127,2986.1,2985.4,3.84132062]
[1766345725390,2.3303,2986.1,2985.4,3.84132062]
[1766345725585,4.8517,2986.3,2985.4,4.27832062]
[1766345725990,0.439,2986.3,2985.5,0.5493]
[1766345726212,4.9967,2986.6,2985.5,0.5493]
[1766345726412,3.44907,2986.5,2985.5,0.5493]
[1766345727201,0.001,2986.2,2985.6,3.3494105]
[1766345727402,0.001,2986.2,2985.7,0.5733]
[1766345727610,2.4863,2986.6,2985.9,0.5892]
[1766345727803,2.9494,2986.8,2985.9,0.5892]
[1766345728004,0.54357,2986.7,2985.9,0.5892]
[1766345728403,2.4863,2986.9,2986.1,0.6058]
[1766345728703,2.5104,2986.8,2986.1,0.6058]
[1766345728910,4.9967,2986.8,2986.0,0.437]
[1766345729215,4.9967,2986.8,2986.0,3.34896182]
[1766345729512,4.9967,2986.8,2986.0,3.95476182]
[1766345729709,4.9967,2986.8,2986.0,0.6058]
[1766345729710,5.5402747,2986.8,2986.0,0.6058]
[1766345731284,5.5402747,2986.8,2986.0,0.61920865]
[1766345731686,5.5402747,2986.8,2986.0,1.05620865]
[1766345735097,5.0644,2986.7,2986.0,1.05620865]
[1766345737009,3.34790305,2987.0,2986.0,1.05620865]
[1766345737010,5.06444696,2987.0,2986.1,0.7507]
[1766345737318,5.06444696,2987.0,2986.3,0.7507]
[1766345737790,2.51974696,2987.0,2986.3,0.7507]
[1766345737995,4.696e-05,2987.0,2986.3,0.7507]
[1766345739222,4.696e-05,2987.0,2986.4,0.7788]
[1766345739521,4.696e-05,2987.0,2986.5,0.7788]
[1766345740237,4.696e-05,2987.0,2986.3,0.437]
[1766345740444,0.439,2986.9,2985.4,0.01540865]
[1766345740607,5.0644,2986.8,2985.6,0.437]
[1766345740929,0.439,2986.9,2985.7,3.34922096]
[1766345741239,7.13500894,2986.9,2985.5,0.806]
[1766345741438,5.0644,2986.7,2985.4,0.45240865]
[1766345741739,0.71350559,2986.8,2985.4,3.80196528]
[1766345741956,5.0644,2986.7,2985.4,3.80196528]
[1766345742115,0.71350559,2986.8,2985.4,3.36496528]
[1766345742316,5.0644,2986.7,2985.4,3.80196528]
[1766345742518,0.57779056,2986.6,2985.4,3.80196528]
[1766345742840,0.71350559,2986.8,2985.7,0.8324]
[1766345742841,2.5447,2986.4,2985.7,0.8324]
[1766345743037,1.5447,2986.4,2985.7,0.8324]
[1766345743213,2.5197,2986.3,2985.6,0.01340865]
[1766345743634,2.5197,2986.3,2985.5,3.78651335]
[1766345743839,2.5197,2986.3,2985.4,5.19739799]
[1766345744040,2.5197,2986.3,2985.4,2.70253179]
[1766345744238,2.5197,2986.3,2985.4,0.002]
[1766345745035,2.5447,2986.2,2985.4,0.002]
[1766345745349,5.0644,2986.0,2985.4,0.002]
[1766345746617,5.0644,2986.4,2985.4,1.9062]
[1766345746845,5.0644,2986.4,2985.5,1.9042]
[1766345747745,2.5447,2986.4,2985.5,5.25367183]
[1766345748051,2.5197,2986.3,2985.6,1.9173]
[1766345748351,2.5197,2986.5,2985.7,1.93070865]
[1766345748645,2.9587,2986.5,2985.8,2.16697087]
[1766345748849,5.5034,2986.5,2985.8,2.16697087]
[1766345752450,5.0644,2986.5,2985.8,2.16697087]
[1766345752850,5.0644,2986.5,2985.8,5.51615484]
[1766345754450,5.0644,2986.5,2985.8,3.58595484]
[1766345754655,5.0644,2986.5,2985.9,2.36353635]
[1766345754862,2.5197,2986.5,2985.9,2.36353635]
[1766345756060,5.0644,2986.5,2985.9,0.35993635]
[1766345756222,5.0644,2986.6,2985.8,0.23677087]
[1766345756855,3.787178,2986.7,2985.8,0.23677087]
[1766345757363,5.0644,2986.6,2985.8,0.23677087]
[1766345757559,5.0644,2986.6,2985.8,0.23877087]
[1766345757768,3.787178,2986.7,2985.8,0.23877087]
[1766345757933,5.0644,2986.6,2985.8,0.23877087]
[1766345759366,3.787178,2986.7,2985.8,0.23877087]
[1766345759548,4.50079404,2986.7,2985.8,0.23877087]
[1766345759752,5.0644,2986.6,2985.8,0.23877087]
[1766345760763,1.15261604,2986.7,2985.8,0.23877087]
[1766345760971,5.0644,2986.5,2985.8,0.23877087]
[1766345761448,5.0644,2986.5,2985.8,2.30887087]
[1766345761771,5.0644,2986.5,2985.9,0.61085595]
[1766345762464,5.0644,2986.5,2985.9,2.69145595]
[1766345763555,5.0644,2986.5,2985.9,2.0806]
[1766345766769,5.0654,2986.5,2985.9,2.0806]
[1766345774277,2.5457,2986.5,2985.9,2.0806]
[1766345774478,2.356,2986.4,2985.9,2.0806]
[1766345776774,2.356,2986.4,2985.8,0.002]
[1766345776956,5.0195,2986.4,2985.8,2.2149]
[1766345777159,5.0195,2986.4,2985.8,2.81635248]
[1766345779275,5.0195,2986.4,2985.8,6.16551488]
[1766345780081,5.0195,2986.4,2985.8,2.81635248]
[1766345781991,5.0195,2986.4,2985.9,2.2416]
[1766345783689,0.001,2986.5,2985.9,2.2416]
[1766345783889,2.356,2987.3,2986.4,2.2514]
[1766345784096,2.6645,2987.4,2986.8,2.2514]
[1766345784385,2.6645,2987.4,2986.2,4.59731979]
[1766345784386,4.59731979,2987.2,2986.2,0.437]
[1766345784553,2.66354696,2987.0,2986.2,0.437]
[1766345784755,5.01954696,2987.0,2986.2,0.437]
[1766345785188,5.01954696,2987.0,2986.2,2.6936]
[1766345785590,4.696e-05,2987.0,2986.2,2.6936]
[1766345785790,0.001,2987.4,2986.7,4.59731979]
[1766345785791,2.6645,2987.4,2986.7,4.59731979]
[1766345785967,0.001,2987.4,2986.8,2.2616]
[1766345786173,2.356,2987.3,2986.8,2.2616]
[1766345786373,5.0195,2987.3,2986.8,2.2616]
[1766345787101,2.356,2987.3,2986.8,2.2616]
[1766345789571,5.0195,2987.3,2986.8,2.2616]
[1766345790585,5.0195,2987.3,2986.8,2.86627536]
[1766345790990,0.001,2987.4,2986.8,6.21430565]
[1766345791186,0.001,2987.3,2986.9,2.2854]
[1766345793904,2.9517,2987.3,2986.8,0.60467536]
[1766345794102,5.3712,2987.2,2986.6,2.7453]
[1766345794396,0.001,2987.3,2986.6,3.78521576]
[1766345794587,0.001,2987.3,2986.8,2.3123]
[1766345796105,0.44,2987.4,2986.8,2.3123]
[1766345796797,0.001,2987.4,2987.0,2.3284]
[1766345798395,0.001,2987.3,2987.0,2.3284]
[1766345799602,0.001,2987.3,2987.0,2.89603415]
[1766345800104,0.001,2987.3,2987.0,6.24385941]
[1766345800599,0.001,2987.3,2987.0,2.89603415]
[1766345801308,0.439,2987.7,2986.7,0.01340865]
[1766345801309,0.001,2987.7,2986.7,0.01340865]
[1766345801472,0.00218,2987.9,2987.5,2.3437]
[1766345801877,0.00218,2987.9,2987.1,0.01340865]
[1766345802080,2.48458,2987.9,2987.3,2.3427]
[1766345802280,5.36588,2987.9,2987.3,2.3427]
[1766345805722,5.36688,2987.9,2987.3,2.3427]
[1766345808219,2.4824,2987.8,2987.1,2.81100865]
[1766345808415,5.3637,2987.8,2987.1,2.81100865]
[1766345808588,5.3637,2987.8,2987.1,3.42824428]
[1766345808919,5.3637,2987.8,2987.2,2.3633]
[1766345810252,0.00318,2987.9,2986.5,2.3659]
[1766345810253,5.3637,2987.5,2986.5,2.3659]
[1766345810534,5.3637,2987.5,2986.6,2.8049]
[1766345810738,5.03108835,2987.6,2986.7,5.99713916]
[1766345810933,0.438,2987.6,2986.7,5.99713916]
[1766345811105,5.3637,2987.5,2986.7,5.99713916]
[1766345811310,0.438,2987.6,2986.7,5.99713916]
[1766345811508,5.3637,2987.5,2986.7,5.99713916]
[1766345812627,0.438,2987.6,2986.8,0.64361392]
[1766345812828,5.3637,2987.5,2986.8,0.64361392]
[1766345813027,2.8813,2987.5,2986.8,6.3649357]
[1766345813331,5.3637,2987.4,2986.8,6.3649357]
[1766345813930,4.59408835,2987.8,2986.8,6.3649357]
[1766345813931,0.001,2987.8,2987.3,2.3756]
[1766345814135,0.001,2988.0,2987.3,2.3756]
[1766345814136,0.001,2988.0,2987.5,4.59308835]
[1766345814433,0.001,2988.0,2987.6,2.3725]
[1766345814634,2.4834,2988.5,2987.8,4.59308835]
[1766345814931,2.4834,2988.5,2988.0,3.34672021]
[1766345815634,2.4834,2988.5,2987.9,5.72789144]
[1766345815835,2.4834,2988.5,2987.9,7.13839285]
[1766345817951,0.001,2988.5,2988.0,2.3875]
[1766345819652,0.001,2988.6,2988.2,2.3904]
[1766345820616,2.8823,2988.9,2988.3,2.3922]
[1766345821046,5.3647,2988.9,2988.3,2.3922]
[1766345821348,2.8813,2988.6,2988.0,3.3467136]
[1766345821649,2.4824,2988.7,2988.2,3.78348644]
[1766345821826,0.001,2988.5,2988.2,3.78348644]
[1766345822026,0.001,2988.9,2988.2,3.78348644]
[1766345822027,0.001,2988.9,2988.3,2.392]
[1766345822739,2.4834,2988.9,2988.3,2.392]
[1766345823459,0.001,2988.9,2988.4,2.3953]
[1766345823863,5.3637,2988.8,2988.3,0.95219827]
[1766345824028,5.3637,2988.8,2988.2,0.437]
[1766345824458,5.3637,2988.8,2988.2,2.8323]
[1766345824658,5.3637,2988.8,2988.3,0.437]
[1766345824963,2.4824,2988.8,2988.3,2.8339]
[1766345825260,0.001,2988.9,2988.1,3.34650612]
[1766345825464,0.001,2988.9,2988.4,5.75125344]
[1766345825857,0.001,2989.1,2988.7,2.403]
[1766345826237,5.1613,2989.4,2988.7,2.402]
[1766345826945,2.9067,2989.4,2988.7,2.402]
[1766345827268,0.001,2989.4,2988.6,0.437]
[1766345827462,0.37940097,2989.4,2988.6,0.437]
[1766345827656,5.1603,2989.2,2988.6,0.437]
[1766345828285,2.2546,2989.2,2988.3,2.4038]
[1766345828568,2.2546,2988.8,2988.5,0.437]
[1766345828965,2.2546,2988.8,2988.4,0.437]
[1766345831561,2.2566,2989.1,2988.5,2.4049]
[1766345832060,5.1623,2989.1,2988.5,2.4049]
[1766345832385,2.2546,2989.0,2988.5,2.4049]
[1766345832881,2.9077,2989.1,2987.9,0.01340865]
[1766345832882,2.9057,2988.7,2987.9,2.405]